Cogmind - Beta 13 @@@ ROGUE MODE // 2024.04.29 @ 16:02:25 Player: rel Result: Destroyed by G-34 Mercenary with Small Laser Performance ------------- Evolutions (0) 0 Regions Visited (1) 200 Robots Destroyed (15) 75 Value Destroyed (368) 368 Prototype IDs (0) 0 Alien Tech Used (0) 0 Bonus (0) 0 TOTAL SCORE: 643 Bonus ------- None Cogmind --------- Core Integrity 0/250 Matter 175/300 Energy 80/100 System Corruption 0% Temperature Warning (354) Movement Core (250) Ox4 Location -10/Materials Parts ------- > --- POWER (1) -------- (None) > --- PROPULSION (2) --- (None) > --- UTILITY (2) ------ Medium Storage Unit > --- WEAPON (2) ------- Small Laser Beam Cannon > --- INVENTORY (10) --- Ion Engine Light Ion Engine Light Assault Rifle Mining Laser Mining Laser Peak State ------------ > --- POWER ------------ Ion Engine > --- PROPULSION ------- Compact Wheel Compact Wheel > --- UTILITY ---------- Medium Storage Unit Terrain Scan Processor > --- WEAPON ----------- Beam Cannon Beam Cannon > --- INVENTORY -------- Light Ion Engine Wheel Small Laser Light Assault Rifle [Rating: 8] Favorites ----------- Power Ion Engine Engine Ion Engine Power Core Light Nuclear Core Propulsion Compact Wheel Wheel Compact Wheel Utility Medium Storage Unit Device Seismic Detector Storage Medium Storage Unit Processor Terrain Scan Processor Weapon Beam Cannon Energy Gun EM Pulse Gun Energy Cannon Beam Cannon Ballistic Gun Light Assault Rifle Build | -11 -10 ------- Run | Yrd Mat Slots Evolved . | . . Power . | . . Propulsion . | . . Utility . | . . Weapon . | . . Parts Attached 17 | 6 11 Power 3 | 1 2 Engine 2 | 1 1 Core 1 | . 1 Reactor . | . . Propulsion 3 | 2 1 Treads . | . . Leg . | . . Wheel 3 | 2 1 Hover . | . . Flight . | . . Utility 4 | 1 3 Device 1 | . 1 Storage 2 | 1 1 Processor 1 | . 1 Hackware . | . . Protection . | . . Artifact . | . . Weapon 7 | 2 5 Energy Gun 2 | 1 1 Energy Cannon 3 | . 3 Ballistic Gun 2 | 1 1 Ballistic Cannon . | . . Launcher . | . . Special Weapon . | . . Impact Weapon . | . . Slashing Weapon . | . . Piercing Weapon . | . . Special Melee Weapon . | . . Unidentified Prototypes . | . . Parts Lost 8 | . 8 Power 2 | . 2 Propulsion 3 | . 3 Utility 1 | . 1 Weapon 2 | . 2 Highest Loss Streak 5 | . 5 To Critical Strikes . | . . Average Slot Usage (%) 82 | . 82 Engine 8 | . 8 Core 1 | . 1 Wheel 24 | . 24 Device 3 | . 3 Storage 14 | . 14 Processor 5 | . 5 Energy Gun 4 | . 4 Energy Cannon 12 | . 12 Ballistic Gun 7 | . 7 Naked Turns . | . . Heaviest Build 22 | 13 22 Greatest Support 32 | 32 32 Greatest Overweight (x) 1 | 1 1 Average Overweight (x) . | . . Largest Inventory Capacity 10 | 8 10 Average Capacity 9 | 6 9 Most Carried 7 | 5 7 Average Carried 3 | 2 3 Final Capacity 10 | 8 10 Final Carried 5 | 1 5 Class Distribution -------------------- 100% | Mutant Dominant Class ---------------- Mutant | -10/Materials Resources | -11 -10 ----------- Run | Yrd Mat Matter Collected 335 | 150 185 Remotely . | . . Salvage Created 525 | . 525 Parts 32 | . 32 Haulers Intercepted 1 | . 1 Recyclers Shooed . | . . Parts Field Recycled . | . . Retrieved Matter . | . . Parts Self-Destructed . | . . Prevented . | . . Kills | -11 -10 ------- Run | Yrd Mat Combat Hostiles Destroyed 12 | . 12 Guns 4 | . 4 Cannons 8 | . 8 Classes Destroyed 5 | . 5 Worker 1 | . 1 Hauler 1 | . 1 Operator 1 | . 1 Swarmer 3 | . 3 Grunt 9 | . 9 Best Kill Streak 7 | . 7 Combat Bots Only 6 | . 6 Max Kills in Single Turn 2 | . 2 Gunslinging . | . . Exploded . | . . Melee . | . . Uniques/NPCs Destroyed . | . . Combat | -11 -10 -------- Run | Yrd Mat Hostile Shots Fired 71 | . 71 Missed 12 | . 12 Damage Taken 889 | . 889 Core 252 | . 252 Absorbed by Shields . | . . Core Remaining (%) 100 | 100 . Volleys Fired 46 | 3 43 Largest 2 | 1 2 Hottest 120 | 40 120 Shots Fired 71 | 3 68 Gun 38 | 3 35 Cannon 33 | . 33 Launcher . | . . Special . | . . Kinetic 18 | . 18 Thermal 36 | . 36 Explosive . | . . Electromagnetic 17 | 3 14 Robot Hit Streak 6 | 3 6 Robot Miss Streak 5 | . 5 Penetration Max . | . . Secondary Targets . | . . Shots Hit Robots 44 | 3 41 Core Hits 21 | . 21 Critical Kills . | . . Critical Parts Destroyed . | . . Critical Strikes 1 | . 1 Corrupt 1 | . 1 Melee Attacks . | . . Impact . | . . Slashing . | . . Piercing . | . . Sneak Attacks . | . . Combat Hostiles . | . . Follow-up Attacks . | . . Damage Inflicted 663 | 39 624 Guns 290 | 39 251 Cannons 351 | . 351 Explosions 22 | . 22 Melee . | . . Ramming . | . . Kinetic 110 | . 110 Thermal 395 | . 395 Explosive . | . . Electromagnetic 158 | 39 119 Impact . | . . Slashing . | . . Piercing . | . . Highest Corruption . | . . Average Corruption . | . . Corruption Purged . | . . Corruption Blocked . | . . Overload Shots . | . . Overflow Damage . | . . Projectiles . | . . Explosions . | . . Melee . | . . Knockbacks . | . . Impact . | . . Kinetic . | . . Secondary . | . . Self-Inflicted Damage . | . . Shots . | . . Rammed . | . . Targets Rammed . | . . Kicked . | . . Crushed . | . . Highest Temperature 578 | . 578 Average Temperature 201 | . 201 Received Heat Transfer 309 | . 309 Effects 14 | . 14 Shutdowns 4 | . 4 Energy Bleed 1 | . 1 Matter Decay 3 | . 3 Short Circuit 1 | . 1 Damage (minor) 1 | . 1 Damage (major) 3 | . 3 Damage (core) 1 | . 1 Siege Activations . | . . Robots Corrupted . | . . Combat Hostiles . | . . Parts Fried . | . . Impact Corruptions . | . . Robots Melted . | . . Combat Hostiles . | . . Parts Melted 2 | . 2 Heat Transferred 840 | . 840 Parts Sabotaged . | . . Parts Stolen . | . . Parts Stripped . | . . Power Chain Reactions 1 | . 1 Alert | -11 -10 ------- Run | Yrd Mat Peak Influence 311 | . 311 Initial . | . . Average 103 | . 117 Maximum Alert Level 1 | . 1 Low Security (%) 85 | 100 83 Level 1 14 | . 16 Level 2 . | . . Level 3 . | . . Level 4 . | . . Level 5 . | . . High Security . | . . Max Security . | . . Squads Dispatched 3 | . 3 Investigation 1 | . 1 Extermination . | . . Reinforcement 2 | . 2 Assault . | . . Garrison . | . . Intercept . | . . Searches Triggered . | . . Construction Impeded . | . . Haulers Reinforced . | . . Active Scanning Responses . | . . Cargo Convoy Interrupts . | . . Stealth | -11 -10 --------- Run | Yrd Mat Distress Signals . | . . Communications Jammed . | . . Distress Signals . | . . Times Spotted 20 | . 20 Peak Tracking Total 7 | . 7 Tactical Retreats 1 | . 1 Traps | -11 -10 ------- Run | Yrd Mat Traps Triggered 1 | . 1 Indirectly . | . . Trap Hack Attempts . | . . Triggered . | . . Disarmed 2 | . 2 Reprogrammed . | . . Reused . | . . Traps Extracted . | . . Installed . | . . Triggered . | . . Machines | -11 -10 ---------- Run | Yrd Mat Machines Disabled . | . . Max in Single Turn . | . . Machines Repaired . | . . Machines Dismantled . | . . Machines Sabotaged . | . . Overloaded Fab Kills . | . . Hacking | -11 -10 --------- Run | Yrd Mat Machines Accessed 4 | . 4 Terminals 2 | . 2 Fabricators . | . . Repair Stations . | . . Recycling Units 2 | . 2 Scanalyzers . | . . Garrison Access . | . . Total Hacks 9 | . 9 Successful 6 | . 6 Failed 3 | . 3 Catastrophic 2 | . 2 Database Lockouts . | . . Manual . | . . Terminals 3 | . 3 Fabricators . | . . Repair Stations . | . . Recycling Units 6 | . 6 Scanalyzers . | . . Garrison Access . | . . Terminal Hacks 3 | . 3 Locate Traps 1 | . 1 Disarm Traps 1 | . 1 Zone Layout 1 | . 1 Fabricator Hacks . | . . Repair Station Hacks . | . . Recycling Unit Hacks 3 | . 3 Report Inventory 2 | . 2 Retrieve Components 1 | . 1 Scanalyzer . | . . Garrison Access Hacks . | . . Unauthorized Hacks . | . . Terminals . | . . Fabricators . | . . Repair Stations . | . . Recycling Units . | . . Scanalyzers . | . . Garrison Access . | . . Data Cores Recovered 1 | . 1 Used . | . . Hacking Detections 3 | . 3 Full Trace Events 1 | . 1 Feedback Events . | . . Feedback Blocked . | . . Robot Schematics Acquired . | . . Robots Built . | . . Authchips . | . . Time . | . . Total Robot Build Rating . | . . Part Schematics Acquired . | . . Parts Built . | . . Authchips . | . . Time . | . . Total Part Build Rating . | . . Parts Repaired . | . . Time . | . . Parts Recycled . | . . Recycled Matter . | . . Retrieved Matter . | . . Retrieved Components . | . . Parts Scanalyzed . | . . Part Schematics Acquired . | . . Parts Damaged . | . . Bothacking | -11 -10 ------------ Run | Yrd Mat Used RIF Installer . | . . Robots Hacked . | . . Non-combat . | . . Combat . | . . Robot Hacks Applied . | . . Relay Couplers Released . | . . Fabnet Peak Effective % . | . . Robots Rewired . | . . Allies Hacked . | . . Hacks Repelled . | . . Allies | -11 -10 -------- Run | Yrd Mat Total Allies . | . . Largest Group . | . . Highest-Rated Group . | . . Highest-Rated Ally . | . . Total Orders . | . . Ally Attacks . | . . Total Damage . | . . Kills . | . . Allies Corrupted . | . . Allies Melted . | . . Intel | -11 -10 ------- Run | Yrd Mat Robot Analysis Total . | . . Derelict Logs Recovered . | . . Drone Launches . | . . Drone Recoveries . | . . Exploration | -11 -10 ------------- Run | Yrd Mat Turns Passed 414 | 49 365 Spaces Moved 252 | 38 214 Core 18 | 18 . Treads . | . . Legs . | . . Wheels 234 | 20 214 Hover . | . . Flight . | . . Fastest Speed 50 | 50 100 Average Speed 98 | 82 100 Slowest Speed 115 | 100 115 Overloaded Moves . | . . Propulsion Burnouts . | . . Robots Hopped . | . . Cave-ins Triggered . | . . Exploration Rate (%) 25 | 3 47 Regions Visited 1 Branch Regions . Pre-discovered Areas . | . . Known Exits Taken . | . . Unknown Exits Taken 1 | 1 . Scrap Searched . | . . Spaces Dug . | . . Terrain Destroyed 5 | . 5 Melee . | . . Projectile . | . . AOE 5 | . 5 Terrain Rammed . | . . Walls Destroyed . | . . Machines Disabled . | . . Actions | -11 -10 --------- Run | Yrd Mat Total 350 | 51 299 Wait 19 | . 19 Move 251 | 37 214 Hop . | . . Pick Up 16 | 5 11 Fast Attach 2 | 2 . Attach 10 | 4 6 Detach . | . . Swap 5 | . 5 Drop 1 | . 1 Fire 46 | 3 43 Melee . | . . Ram . | . . Kick . | . . Crush . | . . Escape Stasis . | . . Rewire . | . . Trap . | . . Miscellaneous . | . . Route ------- -11/Scrapyard -10/Materials (discovered 2 exits: [*Mat] / [*Min]) History --------- Turn | Location | Event 8 | -11/Scrapyard | Discovered new exit (range 16) 50 | -11/Scrapyard | Entered Materials 199 | -10/Materials | Discovered new exit (range 15) 260 | -10/Materials | Discovered new exit (range 9) 301 | -10/Materials | Build established: Mutant 352 | -10/Materials | Core integrity fell below 50% 378 | -10/Materials | Core integrity fell below 20% 415 | -10/Materials | Destroyed by G-34 Mercenary with Small Laser Last Messages --------------- 00389_ K-01 Serf collects debris. 00390_ Overheating: Lgt. Assault Rifle damaged (-47). 00392_ R-06 Scavenger collects Lgt. Assault Rifle. 00393_ Power failure, Lgt. Nuclear Core shutdown. 00393_ Overheating: Matter decay (-30). 00393_ K-01 Serf collects debris. 00395_ R-06 Scavenger collects Flight Unit. 00396_ K-01 Serf collects debris. 00399_ R-06 Scavenger collects Ion Engine. 00400_ K-01 Serf collects debris. 00401_ Com. Wheel destroyed. 00403_ Broken Seismic Detector destroyed. 00403_ R-06 Scavenger collects Flight Unit. 00404_ K-01 Serf collects debris. 00407_ Beam Cannon destroyed. 00408_ Wheel destroyed. 00410_ Lgt. Nuclear Core destroyed. Map ----- +----------------------------------------------------+ | ?????????????????????????????????????????? | | ?????????????????????????????????????????? !* | | ???????????????????????????????????????????""" !* | | ?????????????????????????????????????????? """ ** | | ????????????????????????????????????????????"" | | ?????????????????????????????????????????????? | | ?????????????????????????????????????????? | | ??????????????????????????????????????????######## | | ??????????????????????????????????????????######## | | ?????????????????????????????????????????? ## | | ?????????????????????????????????????????? "T" ## | | ??????????????????????????##?????????????? ## | | ?????????????????????????? ?????????????? ## | | ?????????????????????????? ??????????????######## | | ??????????? ???????????? ???????????????### # | | ??????????? ?????????? ?????????????### # | | ?????????? ???????? ?????????????## | | ???????????? #######+##???????????## = | | ??????????????""" =%= t #???????????# | | ??????????????""" % #???????????# | | ??????????????""" % #???????????## | | ????????? ######g %#?????????#?# | | ????????????????????????#=g ####### #?# | | ????????????????????????# #?## | | ????????????????????????# #??# | | ????????????????????????#@ #??### # | | ????????????????????????##=####### #????## | | ?????????????????????????#*#?????# #?????# | | ?????????????????????????#%#?????# #?????# | | ???????????????????????###+####### ??????###### | | ???????????????????????#*%=! # #######????? | | ???????????????????????#|| # #????? | | ???????????????????????#! # ###### | | ???????????????????????# + + | | ???????????????????????# ! # ] #"" | | ???????????????????????# # ]] #"T | | ???????????????????????# # ]] #"" | | ???????????????????????# # # | | ???????????????????????##+#####+## # | | ????????????????????????# #???# ## "" # | | ????????????????????????# #???# ## "Y ###+## | | ????????????????????????# #???# ## "" | | ????????????????????????# #???# ## | | ???????????????########## ###?# | | ???????????????# !#% #?# ####+########### | | ???????????????#"" # * ### # #?????? | | ???????????????#"Y += < + """" #?????? | | ???????????????#"" # ### ###% """" #?????? | | ???????????????# *# ## # """" #?????? | | ???????????????# ######## # #?????? | +----------------------------------------------------+ Best States ------------- Heat Dissipation 25 Energy Generation 14 Energy Capacity 250 Matter Stores 300 Matter Capacity 300 Sight Range 16 Terrain Scan Density 85 Evasion (%) 50 Item Schematics ----------------- None Robot Schematics ------------------ None Fabricated ------------ Nothing Alien Tech Used ----------------- None Achievements -------------- None Challenges ------------ None Game ------ Seed DataPlatingMultirail Manual? 0 Play Time 00:06:09 Cumulative 14.1 hours Start 2024.04.29 @ 15:54:21 End 2024.04.29 @ 16:02:25 Sessions 1 Manual Loads 0 Difficulty Rogue Special Mode None Game No. 17 Rogue 17 Adventurer 0 Explorer 0 Win Type - Total 0 Types 0/0/0/0/0/0/0/0/0 Lore% 16 Gallery% 23 Achievement% 17 Wizard Run 0 Options --------- Layout 1 ASCII 0 Keyboard 0 Movement Mouse Keybinds 0 Fullscreen 1 Font 32/SmallcapsGlow Map View 50x35 Zoom Use 0% Tactical HUD 1 Map Filters NONE Filters NONE Steam 1 RUN: f2c6f902-ba49-46f6-81df-64122bee317a